bitfinex/quotes_BTCUSD_20250901
["timestamp","ask_amount","ask_price","bid_price","bid_amount"]
[1756717165248,0.82568804,109730.0,109720.0,0.13564811]
[1756717165654,0.82568804,109730.0,109720.0,0.31793028]
[1756717165864,1.06529382,109730.0,109720.0,0.31793028]
[1756717166075,1.06529382,109730.0,109720.0,0.32000028]
[1756717166295,1.06529382,109730.0,109720.0,0.13564811]
[1756717166472,1.06529382,109730.0,109720.0,0.31793028]
[1756717167105,1.06529382,109730.0,109720.0,0.13247811]
[1756717167311,1.06529382,109730.0,109720.0,0.13555811]
[1756717167470,1.06529382,109730.0,109720.0,0.31784028]
[1756717169131,1.06529382,109730.0,109720.0,0.31991028]
[1756717169323,0.82568804,109730.0,109720.0,0.31991028]
[1756717169963,0.67068804,109730.0,109720.0,0.31991028]
[1756717171967,0.19147648,109730.0,109720.0,0.31991028]
[1756717172171,0.67068804,109730.0,109720.0,0.31991028]
[1756717181140,0.48842248,109730.0,109720.0,0.31991028]
[1756717181777,0.67068804,109730.0,109720.0,0.31991028]
[1756717182810,0.48842248,109730.0,109720.0,0.31991028]
[1756717183040,0.67068804,109730.0,109720.0,0.31991028]
[1756717186533,1.42611264,109730.0,109720.0,0.0394981]
[1756717186734,1.42611264,109730.0,109720.0,0.00304]
[1756717186934,1.45350164,109730.0,109720.0,0.00304]
[1756717187373,1.27768282,109730.0,109720.0,0.18532217]
[1756717187597,1.19295704,109730.0,109720.0,0.19047217]
[1756717187768,1.19295704,109730.0,109720.0,0.00819]
[1756717187984,1.51256282,109730.0,109720.0,0.00304]
[1756717190607,1.51252282,109730.0,109720.0,0.00304]
[1756717190804,1.51252282,109730.0,109720.0,0.00612]
[1756717191347,1.51252282,109730.0,109720.0,0.00304]
[1756717194808,1.35768282,109730.0,109720.0,0.19039217]
[1756717195000,1.51252282,109730.0,109720.0,0.24314514]
[1756717195825,1.11807704,109730.0,109720.0,0.24314514]
[1756717196028,1.27291704,109730.0,109720.0,0.24314514]
[1756717196239,1.11807704,109730.0,109720.0,0.24314514]
[1756717196440,1.27291704,109730.0,109720.0,0.24314514]
[1756717196945,0.59581148,109730.0,109720.0,0.33612515]
[1756717197160,0.2488167,109730.0,109720.0,0.33612515]
[1756717197383,0.48842248,109730.0,109720.0,0.36350915]
[1756717200940,0.00921092,109730.0,109720.0,0.36350915]
[1756717201093,0.48842248,109730.0,109720.0,0.36350915]
[1756717201331,0.73440578,109740.0,109730.0,0.18226556]
[1756717201520,0.57960578,109740.0,109730.0,0.48969304]
[1756717201818,0.59622123,109740.0,109730.0,0.48969304]
[1756717202351,0.41748931,109740.0,109730.0,0.48969304]
[1756717202506,0.41796304,109740.0,109730.0,0.48969304]
[1756717202692,0.8971746,109740.0,109730.0,0.48969304]
[1756717203062,0.83630074,109740.0,109730.0,0.48969304]
[1756717203277,0.01708918,109740.0,109730.0,0.48969304]
[1756717203468,0.49630074,109740.0,109730.0,0.48969304]
[1756717203669,0.49630074,109740.0,109730.0,0.51707404]
[1756717203958,0.49510634,109740.0,109730.0,0.51707404]
[1756717204639,0.47968529,109740.0,109730.0,0.52007404]
[1756717204851,0.01661346,109740.0,109730.0,0.52007404]
[1756717205068,0.49582502,109740.0,109730.0,0.52407404]
[1756717206300,0.01661346,109740.0,109730.0,0.52407404]
[1756717206508,0.49582502,109740.0,109730.0,0.52407404]
[1756717206854,0.01661346,109740.0,109730.0,0.52407404]
[1756717207114,0.49582502,109740.0,109730.0,0.52407404]
[1756717209197,0.01661346,109740.0,109730.0,0.52407404]
[1756717209424,0.25621924,109740.0,109730.0,0.52407404]
[1756717209639,0.00047373,109740.0,109730.0,0.52407404]
[1756717209859,0.00047373,109740.0,109730.0,0.76367982]
[1756717210072,0.00047373,109740.0,109730.0,0.76345883]
[1756717210496,0.00047373,109740.0,109730.0,0.96345883]
[1756717210912,0.00047373,109740.0,109730.0,0.72399404]
[1756717211117,0.00047373,109740.0,109730.0,0.96337883]
[1756717211323,0.00047373,109740.0,109730.0,1.01337883]
[1756717211552,0.00047373,109740.0,109730.0,1.41337883]
[1756717211787,0.00047373,109740.0,109730.0,1.36337883]
[1756717212044,0.00047373,109740.0,109730.0,1.41337883]
[1756717213577,0.40784293,109780.0,109770.0,0.18219914]
[1756717213801,0.027377,109780.0,109770.0,0.45314906]
[1756717214029,0.18218254,109780.0,109770.0,0.11119992]
[1756717214277,0.52218254,109780.0,109770.0,0.01821991]
[1756717214494,0.7059155,109780.0,109770.0,0.01821991]
[1756717214726,1.20130336,109780.0,109770.0,0.01821991]
[1756717214950,1.1722504,109780.0,109770.0,0.01836215]
[1756717215193,1.1722504,109780.0,109770.0,0.20056129]
[1756717215848,1.05870092,109780.0,109770.0,0.20056129]
[1756717216080,1.05970092,109780.0,109770.0,0.20056129]
[1756717216588,1.05870092,109780.0,109770.0,0.20056129]
[1756717216964,0.58193134,109780.0,109770.0,0.20056129]
[1756717217170,1.06070092,109780.0,109770.0,0.20056129]
[1756717217532,0.87851838,109780.0,109770.0,0.20056129]
[1756717217724,0.63913359,109780.0,109770.0,0.2966413]
[1756717217934,0.63913359,109780.0,109770.0,0.2986113]
[1756717218359,0.63913359,109780.0,109770.0,0.2966413]
[1756717218561,0.82131613,109780.0,109770.0,0.4481813]
[1756717218965,0.81931613,109780.0,109770.0,0.2935413]
[1756717219172,0.82031613,109780.0,109770.0,0.4481813]
[1756717219411,0.82031613,109780.0,109770.0,0.11134216]
[1756717219612,0.82031613,109780.0,109770.0,0.26598216]
[1756717219820,1.05970092,109780.0,109770.0,0.26598216]
[1756717220244,1.05970092,109780.0,109770.0,0.4481813]
[1756717221074,1.05970092,109780.0,109770.0,0.26598216]
[1756717221498,1.05970092,109780.0,109770.0,0.01836215]
[1756717223078,1.0185704,109780.0,109770.0,0.01836215]
[1756717223292,1.03950922,109780.0,109770.0,0.00014224]
[1756717223528,6.68232679,109780.0,109770.0,0.00014224]
[1756717223737,6.7753068,109780.0,109770.0,0.00014224]
[1756717223947,6.8789353,109780.0,109770.0,0.00014224]
[1756717224161,6.57459548,109780.0,109770.0,0.00014224]
[1756717224374,6.61629623,109780.0,109770.0,0.00014224]
[1756717225241,6.61929623,109780.0,109770.0,0.00014224]
[1756717225447,6.61629623,109780.0,109770.0,0.00014224]
[1756717225896,6.61929623,109780.0,109770.0,0.00014224]
[1756717226338,6.62129623,109780.0,109770.0,0.00014224]
[1756717227000,6.61929623,109780.0,109770.0,0.00014224]
[1756717227230,6.62329623,109780.0,109770.0,0.00014224]
[1756717227485,6.77789623,109780.0,109770.0,0.00014224]
[1756717227717,6.36651216,109780.0,109770.0,0.00014224]
[1756717229663,6.70651216,109780.0,109770.0,0.00014224]
[1756717231399,6.05974186,109780.0,109770.0,0.00014224]
[1756717231583,6.70651216,109780.0,109770.0,0.00014224]
[1756717232066,6.70651216,109780.0,109720.0,0.24418924]
[1756717232067,0.18226556,109730.0,109720.0,0.05573297]
[1756717232273,6.12898458,109730.0,109720.0,0.00051373]
[1756717232518,6.18045295,109730.0,109720.0,0.00051373]
[1756717232743,6.15803754,109730.0,109720.0,0.00051373]
[1756717232983,6.20000765,109730.0,109720.0,0.00051373]
[1756717233155,6.01635469,109730.0,109720.0,0.00543373]
[1756717233397,6.17195469,109730.0,109720.0,0.00345373]
[1756717233790,6.17095469,109730.0,109720.0,0.00345373]
[1756717233994,6.17095469,109730.0,109720.0,0.00845373]
[1756717234237,6.17095469,109730.0,109720.0,0.00543373]
[1756717234682,6.17095469,109730.0,109720.0,0.00345373]
[1756717235089,6.17095469,109730.0,109720.0,0.00545373]
[1756717235342,5.58517449,109730.0,109720.0,0.00545373]
[1756717235576,6.17095469,109730.0,109720.0,0.00743373]
[1756717235786,6.17095469,109730.0,109720.0,0.00843373]
[1756717238662,6.17095469,109730.0,109720.0,0.00351373]
[1756717239135,6.17095469,109730.0,109720.0,0.00645373]
[1756717239978,6.17095469,109730.0,109720.0,0.00351373]
[1756717240206,6.20000765,109730.0,109720.0,0.00351373]
[1756717241016,6.20000765,109730.0,109720.0,0.00151373]
[1756717241222,6.20000765,109730.0,109720.0,0.00251373]
[1756717241421,6.20000765,109730.0,109720.0,0.00151373]
[1756717241827,6.20000765,109730.0,109720.0,0.00051373]
[1756717242034,6.20000765,109730.0,109720.0,0.00151373]
[1756717242280,6.20100765,109730.0,109720.0,0.00151373]
[1756717242777,6.20000765,109730.0,109720.0,0.00151373]
[1756717243030,6.05006065,109730.0,109720.0,0.00151373]
[1756717243251,6.17560769,109730.0,109720.0,0.00151373]
[1756717243696,6.17560769,109730.0,109720.0,0.00445373]
[1756717244602,6.02100769,109730.0,109720.0,0.00445373]
[1756717244857,6.17560769,109730.0,109720.0,0.00445373]
[1756717245086,6.17560769,109730.0,109720.0,0.00151373]
[1756717245349,6.02100769,109730.0,109720.0,0.00445373]
[1756717245561,6.17560769,109730.0,109720.0,0.00445373]
[1756717245754,6.02100769,109730.0,109720.0,0.00445373]
[1756717245887,6.02100769,109730.0,109720.0,0.00643373]
[1756717246088,6.17560769,109730.0,109720.0,0.00643373]
[1756717246722,5.9744277,109730.0,109720.0,0.00643373]
[1756717246923,6.15669326,109730.0,109720.0,0.00643373]
[1756717247339,6.00209326,109730.0,109720.0,0.00445373]
[1756717247542,6.15669326,109730.0,109720.0,0.00445373]
[1756717247923,6.15669326,109730.0,109720.0,0.00151373]
[1756717248988,5.83560769,109730.0,109720.0,0.00151373]
[1756717249195,5.86466065,109730.0,109720.0,0.00151373]
[1756717250215,5.86466065,109730.0,109720.0,0.00445373]
[1756717250451,5.71006065,109730.0,109720.0,0.00445373]
[1756717250677,5.86466065,109730.0,109720.0,0.00445373]
[1756717250963,6.20466065,109730.0,109720.0,0.00445373]
[1756717252417,6.20462065,109730.0,109720.0,0.00445373]
[1756717253043,6.17556769,109730.0,109720.0,0.00643373]
[1756717253250,6.01098987,109730.0,109720.0,0.00643373]
[1756717254296,6.01098987,109730.0,109720.0,0.00445373]
[1756717254936,6.01098987,109730.0,109720.0,0.00151373]
[1756717255349,6.03192869,109730.0,109720.0,0.00151373]
[1756717257497,6.03192869,109730.0,109720.0,0.00464373]
[1756717259271,5.87736869,109730.0,109720.0,0.00662373]
[1756717259494,6.03192869,109730.0,109720.0,0.00662373]
[1756717260329,6.03192869,109730.0,109720.0,0.00464373]
[1756717260755,6.03188869,109730.0,109720.0,0.00662373]
[1756717261170,6.03188869,109730.0,109720.0,0.00151373]
[1756717261384,6.06094165,109730.0,109720.0,0.00151373]
[1756717262706,6.06094165,109730.0,109720.0,0.00464373]
[1756717262978,5.90642165,109730.0,109720.0,0.00464373]
[1756717263204,6.06094165,109730.0,109720.0,0.00662373]
[1756717264960,6.06094165,109730.0,109720.0,0.00151373]
[1756717266233,6.17633707,109730.0,109720.0,0.00151373]
[1756717266889,6.15392166,109730.0,109720.0,0.00151373]
[1756717267970,6.15388166,109730.0,109720.0,0.00464373]
[1756717269755,6.15388166,109730.0,109720.0,0.00151373]
[1756717270820,6.15388166,109730.0,109720.0,0.00464373]
[1756717271530,6.15388166,109730.0,109720.0,0.00151373]
[1756717274000,6.15388166,109730.0,109720.0,0.00464373]
[1756717274957,5.99940166,109730.0,109720.0,0.00662373]
[1756717275175,6.15388166,109730.0,109720.0,0.00662373]
[1756717275571,6.15388166,109730.0,109720.0,0.00464373]
[1756717276695,6.15388166,109730.0,109720.0,0.00662373]
[1756717277767,6.15388166,109730.0,109720.0,0.00464373]
[1756717278399,6.15388166,109730.0,109720.0,0.00662373]
[1756717278618,6.15388166,109730.0,109720.0,0.00151373]
[1756717279941,6.15388166,109730.0,109720.0,0.00464373]
[1756717280463,6.15388166,109730.0,109720.0,0.00662373]
[1756717283899,6.15380166,109730.0,109720.0,0.00662373]
[1756717285901,6.23380166,109730.0,109720.0,0.00662373]
[1756717286645,6.07940166,109730.0,109720.0,0.00662373]
[1756717286849,6.23380166,109730.0,109720.0,0.00662373]
[1756717288569,6.23380166,109730.0,109720.0,0.00464373]
[1756717288697,6.23380166,109730.0,109720.0,0.00151373]
[1756717289102,6.23380166,109730.0,109720.0,0.00462373]
[1756717289303,6.23380166,109730.0,109720.0,0.00151373]
[1756717290755,6.23380166,109730.0,109720.0,0.00462373]
[1756717291173,6.23380166,109730.0,109720.0,0.00673373]
[1756717292068,6.23380166,109730.0,109720.0,0.00462373]
[1756717292257,6.23380166,109730.0,109720.0,0.00151373]
[1756717292783,6.23380166,109730.0,109720.0,0.00462373]
[1756717294006,6.23380166,109730.0,109720.0,0.00151373]
[1756717294219,6.30388166,109730.0,109720.0,0.00151373]
[1756717298459,6.14948166,109730.0,109720.0,0.00673373]
[1756717298682,6.30384166,109730.0,109720.0,0.00673373]
[1756717299286,6.30384166,109730.0,109720.0,0.00462373]
[1756717301807,6.30384166,109730.0,109720.0,0.00151373]
[1756717302009,6.30384166,109730.0,109720.0,0.00462373]
[1756717302214,6.30384166,109730.0,109720.0,0.00151373]
[1756717302935,6.14948166,109730.0,109720.0,0.00151373]
[1756717303158,6.30380166,109730.0,109720.0,0.00673373]
[1756717306624,6.30380166,109730.0,109720.0,0.00462373]
[1756717307159,6.14948166,109730.0,109720.0,0.00673373]
[1756717307360,6.30380166,109730.0,109720.0,0.00673373]
[1756717308392,6.30380166,109730.0,109720.0,0.00462373]
[1756717308601,6.30380166,109730.0,109720.0,0.00151373]
[1756717318072,5.87262146,109730.0,109720.0,0.00358373]
[1756717318299,6.30380166,109730.0,109720.0,0.00458373]
[1756717319660,6.30380166,109730.0,109720.0,0.00665373]
[1756717321091,6.30380166,109730.0,109720.0,0.00458373]
[1756717321327,6.14948166,109730.0,109720.0,0.00458373]
[1756717321537,6.30372166,109730.0,109720.0,0.00665373]
[1756717322325,6.14948166,109730.0,109720.0,0.00665373]
[1756717322534,5.94515977,109730.0,109720.0,0.00665373]
[1756717323166,5.96609859,109730.0,109720.0,0.00665373]
[1756717324047,6.2746687,109730.0,109720.0,0.00458373]
[1756717324257,6.30372166,109730.0,109720.0,0.00458373]
[1756717324689,6.30372166,109730.0,109720.0,0.00151373]
[1756717325724,6.30368166,109730.0,109720.0,0.00458373]
[1756717327250,6.30368166,109730.0,109720.0,0.00151373]
[1756717327861,6.30368166,109730.0,109720.0,0.00458373]
[1756717328064,6.30368166,109730.0,109720.0,0.00151373]
[1756717332204,6.30844537,109730.0,109720.0,0.00151373]
[1756717332616,6.51723964,109730.0,109720.0,1e-08]
[1756717332824,0.5432376,109710.0,109700.0,0.00307]
[1756717333061,6.10697177,109710.0,109700.0,0.00307]
[1756717333265,6.10697177,109710.0,109700.0,0.00514]
[1756717333449,6.11062477,109710.0,109700.0,0.00514]
[1756717333862,6.17205487,109710.0,109700.0,0.00514]
[1756717334284,6.32621487,109710.0,109700.0,0.00614]
[1756717334850,6.11162477,109710.0,109700.0,0.00614]
[1756717335888,6.32721487,109710.0,109700.0,0.00614]
[1756717336748,5.95746477,109710.0,109700.0,0.00614]
[1756717336964,6.08257181,109710.0,109700.0,0.00614]
[1756717337164,5.5584116,109710.0,109700.0,0.00614]
[1756717337391,6.0596718,109710.0,109700.0,0.00614]
[1756717338530,5.9055118,109710.0,109700.0,0.00614]
[1756717338737,6.0596718,109710.0,109700.0,0.00614]
[1756717339322,5.9055118,109710.0,109700.0,0.00614]
[1756717339531,6.0596718,109710.0,109700.0,0.00614]
[1756717341554,6.0596718,109710.0,109690.0,4e-05]
[1756717341555,0.20325422,109700.0,109690.0,4e-05]
[1756717341763,1.19004114,109690.0,109680.0,4e-05]
[1756717341962,6.29354215,109690.0,109680.0,4e-05]
[1756717342098,6.34501003,109690.0,109680.0,4e-05]
[1756717343251,1.19817191,109680.0,109670.0,0.0004]
[1756717343485,1.19817191,109680.0,109670.0,0.00048638]
[1756717343486,6.37175292,109680.0,109670.0,0.00048638]
[1756717343719,0.52239854,109650.0,109640.0,0.0004]
[1756717343956,0.52239854,109650.0,109640.0,0.00044745]
[1756717343957,1.17781874,109650.0,109640.0,0.00044745]
[1756717344180,1.2035976,109650.0,109640.0,0.00248745]
[1756717344402,1.2072516,109650.0,109640.0,0.00248745]
[1756717345073,1.24744104,109650.0,109640.0,0.00248745]
[1756717345776,1.24744104,109650.0,109640.0,0.00568745]
[1756717346192,1.24744104,109650.0,109640.0,0.00768745]
[1756717347890,1.14744104,109650.0,109640.0,0.00768745]
[1756717348073,0.99328104,109650.0,109640.0,0.00768745]
[1756717348304,1.14744104,109650.0,109640.0,0.00768745]
[1756717350830,0.99328104,109650.0,109640.0,0.00768745]
[1756717351056,0.37626084,109650.0,109640.0,0.00768745]
[1756717351278,0.58819694,109650.0,109640.0,0.00768745]
[1756717351502,0.92819694,109650.0,109640.0,0.00996763]
[1756717351747,0.92819694,109650.0,109640.0,0.30464269]
[1756717351988,1.00819694,109650.0,109640.0,0.11994734]
[1756717352228,1.00819694,109650.0,109640.0,0.30464269]
[1756717352434,1.00819694,109650.0,109640.0,0.30236251]
[1756717352637,0.93811694,109650.0,109640.0,0.30236251]
[1756717353752,0.93811694,109650.0,109640.0,0.11994734]
[1756717353979,0.93811694,109650.0,109640.0,0.12222752]
[1756717354371,0.93811694,109650.0,109640.0,0.30464269]
[1756717354584,0.90322718,109650.0,109640.0,0.11994734]
[1756717354796,0.94498559,109650.0,109640.0,0.30464269]
[1756717355011,0.96741103,109650.0,109640.0,0.30236251]
[1756717356228,0.96741103,109650.0,109640.0,0.11994734]
[1756717356420,0.96741103,109650.0,109640.0,0.30464269]
[1756717356692,0.96741103,109650.0,109640.0,0.30236251]
[1756717358190,0.10242544,109650.0,109640.0,0.30236251]
[1756717360473,0.08,109650.0,109640.0,0.30236251]
[1756717360694,0.08,109650.0,109640.0,0.51795261]
[1756717360885,0.08,109650.0,109640.0,0.30236251]
[1756717361428,0.08,109650.0,109640.0,0.30036251]
[1756717362034,0.10250711,109650.0,109640.0,0.30036251]
[1756717362269,0.08,109650.0,109640.0,0.30036251]
[1756717363020,0.10193046,109650.0,109640.0,0.30136251]
[1756717363454,0.10193046,109650.0,109640.0,0.45548251]
[1756717363679,0.10193046,109650.0,109640.0,0.45448251]
[1756717364137,0.10193046,109650.0,109640.0,0.45648251]
[1756717367111,0.10193046,109650.0,109640.0,0.30236251]
[1756717367312,0.08,109650.0,109640.0,0.45648251]
[1756717374442,0.08,109650.0,109640.0,0.67207261]
[1756717374795,0.0721143,109690.0,109680.0,0.18234865]
[1756717375062,0.0721143,109690.0,109680.0,0.45285353]
[1756717375063,0.09419148,109690.0,109680.0,0.45285353]
[1756717375374,0.30978158,109690.0,109680.0,0.45285353]
[1756717375962,0.23964728,109690.0,109680.0,0.44769098]
[1756717376142,0.23964728,109690.0,109680.0,0.29565098]
[1756717376349,0.23964728,109690.0,109680.0,0.44769098]
[1756717376731,0.23964728,109690.0,109680.0,0.29561098]
[1756717376936,0.23964728,109690.0,109680.0,0.44969098]
[1756717380622,0.23964728,109690.0,109680.0,0.44965098]
[1756717381327,0.4219793,109690.0,109680.0,0.44965098]
[1756717381530,0.23964728,109690.0,109680.0,0.44965098]
[1756717381725,0.23964728,109690.0,109680.0,0.45282098]
[1756717381966,0.23964728,109690.0,109680.0,0.45486098]
[1756717382905,0.02207718,109690.0,109680.0,0.45486098]
[1756717383112,0.23766728,109690.0,109680.0,0.45486098]
[1756717383323,0.2155901,109690.0,109680.0,0.45486098]
[1756717384177,0.00198,109690.0,109680.0,0.44965098]
[1756717384307,0.2175701,109690.0,109680.0,0.44965098]
[1756717384923,0.00198,109690.0,109680.0,0.44965098]
[1756717385103,0.2175701,109690.0,109680.0,0.45486098]
[1756717385737,0.58516568,109700.0,109690.0,0.18233202]
[1756717385931,0.80274578,109700.0,109690.0,0.33903133]
[1756717386301,0.62042986,109700.0,109690.0,0.33903133]
[1756717386504,0.80274526,109700.0,109690.0,0.33903133]
[1756717388141,0.80274526,109700.0,109690.0,0.15669931]
[1756717388341,0.18233202,109690.0,109680.0,0.20063097]
[1756717388497,0.95808222,109690.0,109680.0,0.11126233]
[1756717388700,0.95808222,109690.0,109680.0,0.26530233]
[1756717389653,0.95808222,109690.0,109680.0,0.26630233]
[1756717389893,0.74249212,109690.0,109680.0,0.26630233]
[1756717390516,1.11212222,109690.0,109680.0,0.26630233]
[1756717390754,0.34,109690.0,109680.0,0.45069098]
[1756717390973,0.30583686,109700.0,109680.0,0.45386098]
[1756717391185,0.80075526,109700.0,109690.0,0.28076118]
[1756717391405,0.61843986,109700.0,109690.0,0.34436925]
[1756717391639,0.80273526,109700.0,109690.0,0.34436925]
[1756717391848,0.62041986,109700.0,109690.0,0.34436925]
[1756717392110,0.80273526,109700.0,109690.0,0.34436925]
[1756717392801,0.62041986,109700.0,109690.0,0.34436925]
[1756717393016,0.61843986,109700.0,109690.0,0.34436925]
[1756717394325,0.23764883,109700.0,109690.0,0.34436925]
[1756717395262,0.02205873,109700.0,109690.0,0.34436925]
[1756717395534,0.23764883,109700.0,109690.0,0.34436925]
[1756717395751,0.2155901,109700.0,109690.0,0.34436925]
[1756717395971,0.2155901,109700.0,109690.0,0.34536925]
[1756717396857,0.2155901,109710.0,109700.0,0.18230053]
[1756717397070,0.2155901,109710.0,109700.0,0.48499918]
[1756717397283,0.2155901,109710.0,109700.0,0.48816918]
[1756717397500,0.23756761,109710.0,109700.0,0.48816918]
[1756717399815,0.23954761,109710.0,109700.0,0.49016918]
[1756717400022,0.42184639,109710.0,109700.0,0.48699918]
[1756717400237,0.23954761,109710.0,109700.0,0.48295918]
[1756717400415,0.45513771,109710.0,109700.0,0.48695918]
[1756717400881,0.23954761,109710.0,109700.0,0.48695918]
[1756717401098,0.23954761,109710.0,109700.0,0.49216918]
[1756717402012,0.02197751,109710.0,109700.0,0.49216918]
[1756717402229,0.23954761,109710.0,109700.0,0.49216918]
[1756717402461,0.2175701,109710.0,109700.0,0.49216918]
[1756717403146,0.39986888,109710.0,109700.0,0.49216918]
[1756717403351,0.61545898,109710.0,109700.0,0.48695918]
[1756717403783,0.45554854,109710.0,109700.0,0.49008918]
[1756717403998,0.45554854,109710.0,109700.0,0.49224918]
[1756717404829,0.23995844,109710.0,109700.0,0.49224918]
[1756717407574,0.23797844,109710.0,109700.0,0.49224918]
[1756717409482,0.02238834,109710.0,109700.0,0.49224918]
[1756717409880,0.2155901,109720.0,109710.0,0.18229878]
[1756717410112,0.2155901,109720.0,109710.0,0.34586359]
[1756717410286,0.25205573,109720.0,109710.0,0.34802359]
[1756717410500,0.25403573,109720.0,109710.0,0.34802359]
[1756717410802,0.03844563,109720.0,109710.0,0.34802359]
[1756717411004,0.25403573,109720.0,109710.0,0.34802359]
[1756717411213,0.25403573,109720.0,109710.0,0.35002359]
[1756717412013,0.25205573,109720.0,109710.0,0.35002359]
[1756717412212,0.03646563,109720.0,109710.0,0.35002359]
[1756717412516,0.2155901,109720.0,109710.0,0.35002359]
[1756717414243,0.25248944,109720.0,109710.0,0.35002359]
[1756717414551,0.03689934,109720.0,109710.0,0.35002359]
[1756717414892,0.6554901,109730.0,109720.0,0.18228217]
[1756717415076,0.69190383,109730.0,109720.0,0.48774276]
[1756717415275,0.47631373,109730.0,109720.0,0.48774276]
[1756717415682,0.4416644,109750.0,109740.0,0.18224895]
[1756717415891,0.4416644,109750.0,109740.0,0.43447896]
[1756717415892,0.3170684,109750.0,109740.0,0.43447896]
[1756717416133,0.65754259,109750.0,109740.0,0.28051896]
[1756717416336,0.31754259,109750.0,109740.0,0.47546592]
[1756717416491,0.24542829,109750.0,109740.0,0.47546592]
[1756717416692,0.76766063,109750.0,109740.0,0.32150592]
[1756717416915,0.76866063,109750.0,109740.0,0.47646592]
[1756717417143,0.58642829,109750.0,109740.0,0.47546592]
[1756717417343,0.58642829,109750.0,109740.0,0.47746592]
[1756717417633,0.76866063,109750.0,109740.0,0.47746592]
[1756717418045,0.58642829,109750.0,109740.0,0.47746592]
[1756717418274,0.58542829,109750.0,109740.0,0.47746592]
[1756717418794,0.76766063,109750.0,109740.0,0.47746592]
[1756717418998,0.58542829,109750.0,109740.0,0.47746592]
[1756717419325,0.62247151,109750.0,109740.0,0.48275592]
[1756717419925,0.80470385,109750.0,109740.0,0.48275592]
[1756717420140,0.80470385,109750.0,109740.0,0.47746592]
[1756717420418,0.62247151,109750.0,109740.0,0.47746592]
[1756717420661,0.62247151,109750.0,109740.0,0.48059592]
[1756717420890,0.62247151,109750.0,109740.0,0.48271592]
[1756717421098,0.62247151,109750.0,109740.0,0.32879592]
[1756717421312,0.62247151,109750.0,109740.0,0.48271592]
[1756717421731,0.62247151,109750.0,109740.0,0.47742592]
[1756717422118,0.62247151,109750.0,109740.0,0.47958592]
[1756717422323,0.62247151,109750.0,109740.0,0.48271592]
[1756717422675,0.40490141,109750.0,109740.0,0.48271592]
[1756717422885,0.06490141,109750.0,109740.0,0.48271592]
[1756717423091,0.03751741,109750.0,109740.0,0.48271592]
[1756717423269,0.03751741,109750.0,109740.0,0.55279592]
[1756717423502,0.00047419,109750.0,109740.0,0.55279592]
[1756717424231,0.00047419,109750.0,109740.0,0.55079592]
[1756717424716,0.00047419,109750.0,109740.0,0.55179592]
[1756717425138,0.00047419,109750.0,109740.0,0.55079592]
[1756717425525,0.00047419,109750.0,109740.0,0.55279592]
[1756717426106,0.00047419,109750.0,109740.0,0.40087592]
[1756717426312,0.21606429,109750.0,109740.0,0.55479592]
[1756717426516,0.21606429,109750.0,109740.0,0.55279592]
[1756717426917,0.21606429,109750.0,109740.0,0.55479592]
[1756717429048,0.22063429,109750.0,109740.0,0.50322896]
[1756717429254,0.21804429,109750.0,109740.0,0.50410896]
[1756717429642,0.00047419,109750.0,109740.0,0.50539896]
[1756717430075,0.00047419,109750.0,109740.0,0.50739896]
[1756717430282,0.00047419,109750.0,109740.0,0.50539896]
[1756717430668,0.00047419,109750.0,109740.0,0.57616392]
[1756717430882,0.00047419,109750.0,109740.0,0.42136392]
[1756717431090,0.21606429,109750.0,109740.0,0.57620392]
[1756717431303,0.21606429,109750.0,109740.0,0.57716392]
[1756717431717,0.21606429,109750.0,109740.0,0.57616392]
[1756717432036,0.21606429,109750.0,109740.0,0.57816392]
[1756717432268,0.21606429,109750.0,109740.0,0.57616392]
[1756717432704,0.21606429,109750.0,109740.0,0.57916392]
[1756717435867,0.21606429,109750.0,109740.0,0.42436392]
[1756717436088,0.21804429,109750.0,109740.0,0.42436392]
[1756717436288,0.21804429,109750.0,109740.0,0.57912392]
[1756717437123,0.21804429,109750.0,109740.0,0.41907392]
[1756717437355,0.21804429,109750.0,109740.0,0.57379392]
[1756717438125,0.40027663,109750.0,109740.0,0.41907392]
[1756717438328,0.40286663,109750.0,109740.0,0.57379392]
[1756717440398,0.95845673,109750.0,109740.0,0.07376496]
[1756717440604,0.95845673,109750.0,109740.0,0.15964]
[1756717440807,0.91904709,109750.0,109740.0,0.15964]
[1756717441018,0.91744709,109750.0,109740.0,0.15964]
[1756717441409,0.91806709,109750.0,109740.0,0.15764]
[1756717441618,0.91744709,109750.0,109740.0,0.15764]
[1756717441828,0.91744709,109750.0,109740.0,0.18894506]
[1756717442979,0.91744709,109750.0,109740.0,0.37119401]
[1756717443414,0.70185699,109750.0,109740.0,0.18894506]
[1756717443638,0.91744709,109750.0,109740.0,0.37119401]
[1756717443846,0.91744709,109750.0,109740.0,0.18894506]
[1756717444069,0.91806709,109750.0,109740.0,0.18894506]
[1756717444285,0.91744709,109750.0,109740.0,0.18894506]
[1756717445118,0.91744709,109750.0,109740.0,0.03430506]
[1756717445543,1.13365719,109750.0,109740.0,0.03430506]
[1756717446598,1.17458967,109750.0,109740.0,0.03430506]
[1756717447547,0.52226421,109740.0,109730.0,0.1546]
[1756717447765,0.18226556,109730.0,109720.0,0.39323275]
[1756717447992,0.39785566,109730.0,109720.0,0.48621276]
[1756717448213,0.39785566,109730.0,109720.0,0.48823276]
[1756717448434,0.39884566,109730.0,109720.0,0.48823276]
[1756717448656,0.39785566,109730.0,109720.0,0.48823276]
[1756717449499,0.5829761,109740.0,109730.0,0.18226556]
[1756717449712,0.5829761,109740.0,109730.0,0.25459539]
[1756717450125,0.5829761,109740.0,109730.0,0.3475754]
[1756717450329,0.367386,109740.0,109730.0,0.3475754]
[1756717450543,0.5829761,109740.0,109730.0,0.3475754]
[1756717454254,0.027386,109740.0,109730.0,0.3475754]
[1756717454454,0.67328399,109750.0,109740.0,0.18224895]
[1756717454754,0.91724609,109750.0,109740.0,0.39491139]
[1756717455207,0.5839621,109750.0,109740.0,0.39491139]
[1756717455435,0.7373321,109750.0,109740.0,0.39491139]
[1756717455628,0.77892524,109750.0,109740.0,0.39491139]
[1756717455832,0.77896524,109750.0,109740.0,0.39491139]
[1756717456529,0.62456524,109750.0,109740.0,0.39491139]
[1756717457119,0.027382,109750.0,109740.0,0.4878914]
[1756717457328,0.69212716,109760.0,109750.0,0.18223234]
[1756717457536,0.87399769,109760.0,109750.0,0.25442471]
[1756717458617,0.87499769,109760.0,109750.0,0.25442471]
[1756717459047,0.87599769,109760.0,109750.0,0.25442471]
[1756717459706,0.72163769,109760.0,109750.0,0.25442471]
[1756717461047,0.50604759,109760.0,109750.0,0.25442471]
[1756717461256,0.72163769,109760.0,109750.0,0.25442471]
[1756717461463,0.50604759,109760.0,109750.0,0.25442471]
[1756717461666,0.72163769,109760.0,109750.0,0.25442471]
[1756717462819,0.90484343,109760.0,109750.0,0.40352471]
[1756717463142,0.90484343,109760.0,109750.0,0.06701237]
[1756717463351,0.90484343,109760.0,109750.0,0.24924471]
[1756717463568,0.72262769,109760.0,109750.0,0.25427471]
[1756717463769,0.66044759,109760.0,109750.0,0.25427471]
[1756717464007,0.87603769,109760.0,109750.0,0.25427471]
[1756717464817,0.76366198,109760.0,109750.0,0.25427471]